[Event "Titled Tuesday Blitz April 12 Early 2022"]
[White "Silvestre, Christian"]
[Black "Broca Jimenez, Fernando"]
[WhiteFideId "30956269"]
[BlackFideId "5104742"]
[WhiteElo "2452"]
[BlackElo "2062"]
[Result "1/2-1/2"]
[Round "07"]
[TimeControl "180+1"]
[Date "2022.04.13"]
[WhiteClock "0:00:18"]
[BlackClock "0:00:16"]

1. Nf3 {[%clk 0:03:00]}  g6 {[%clk 0:02:57]} 2. g3 {[%clk 0:02:52]}  Bg7 {[%clk 0:02:57]} 3. Bg2 {[%clk 0:02:51]}  d6 {[%clk 0:02:57]} 4. d4 {[%clk 0:02:48]}  Nf6 {[%clk 0:02:57]} 5. c4 {[%clk 0:02:48]}  O-O {[%clk 0:02:58]} 6. b3 {[%clk 0:02:47]}  e5 {[%clk 0:02:57]} 7. Bb2 {[%clk 0:02:44]}  e4 {[%clk 0:02:44]} 8. Ng5 {[%clk 0:02:35]}  Re8 {[%clk 0:02:43]} 9. Nc3 {[%clk 0:02:29]}  Bf5 {[%clk 0:02:34]} 10. Nh3 {[%clk 0:02:11]}  Nc6 {[%clk 0:02:04]} 11. O-O {[%clk 0:01:59]}  Qd7 {[%clk 0:01:46]} 12. Nf4 {[%clk 0:01:57]}  g5 {[%clk 0:01:36]} 13. Nfd5 {[%clk 0:01:55]}  Nxd5 {[%clk 0:01:32]} 14. Nxd5 {[%clk 0:01:55]}  Ne7 {[%clk 0:01:28]} 15. Nxe7+ {[%clk 0:01:39]}  Qxe7 {[%clk 0:01:23]} 16. Qd2 {[%clk 0:01:35]}  Bg6 {[%clk 0:01:10]} 17. e3 {[%clk 0:01:28]}  c6 {[%clk 0:01:04]} 18. Rae1 {[%clk 0:01:15]}  g4 {[%clk 0:00:56]} 19. Rc1 {[%clk 0:01:08]}  Rad8 {[%clk 0:00:50]} 20. d5 {[%clk 0:01:04]}  Bxb2 {[%clk 0:00:45]} 21. Qxb2 {[%clk 0:01:05]}  c5 {[%clk 0:00:44]} 22. b4 {[%clk 0:01:02]}  b6 {[%clk 0:00:43]} 23. a4 {[%clk 0:01:01]}  Rb8 {[%clk 0:00:34]} 24. b5 {[%clk 0:00:56]}  Qe5 {[%clk 0:00:32]} 25. Qxe5 {[%clk 0:00:54]}  Rxe5 {[%clk 0:00:33]} 26. Ra1 {[%clk 0:00:54]}  f5 {[%clk 0:00:29]} 27. a5 {[%clk 0:00:54]}  Re7 {[%clk 0:00:29]} 28. Ra3 {[%clk 0:00:49]}  Reb7 {[%clk 0:00:26]} 29. Rfa1 {[%clk 0:00:49]}  Be8 {[%clk 0:00:22]} 30. Bf1 {[%clk 0:00:47]}  Kf7 {[%clk 0:00:21]} 31. h3 {[%clk 0:00:42]}  h5 {[%clk 0:00:20]} 32. hxg4 {[%clk 0:00:42]}  hxg4 {[%clk 0:00:21]} 33. axb6 {[%clk 0:00:39]}  axb6 {[%clk 0:00:20]} 34. Ra7 {[%clk 0:00:39]}  Ke7 {[%clk 0:00:20]} 35. Be2 {[%clk 0:00:37]}  Kd7 {[%clk 0:00:19]} 36. Kf1 {[%clk 0:00:37]}  Kc7 {[%clk 0:00:18]} 37. Ke1 {[%clk 0:00:36]}  Bd7 {[%clk 0:00:19]} 38. Kd2 {[%clk 0:00:35]}  Rh8 {[%clk 0:00:19]} 39. Ra8 {[%clk 0:00:28]}  Bc8 {[%clk 0:00:17]} 40. R1a7 {[%clk 0:00:19]}  Rh2 {[%clk 0:00:17]} 41. Ke1 {[%clk 0:00:18]}  Rh1+ {[%clk 0:00:16]} 42. Bf1 {[%clk 0:00:17]}  Rh2 {[%clk 0:00:12]} 43. Rxb7+ {[%clk 0:00:17]}  Kxb7 {[%clk 0:00:12]} 44. Ra2 {[%clk 0:00:16]}  Bd7 {[%clk 0:00:12]} 45. Ra3 {[%clk 0:00:16]}  Bc8 {[%clk 0:00:12]} 46. Rb3 {[%clk 0:00:16]}  Bd7 {[%clk 0:00:13]} 47. Rb1 {[%clk 0:00:17]}  Rh8 {[%clk 0:00:12]} 48. Rd1 {[%clk 0:00:18]}  Ra8 {[%clk 0:00:12]} 49. Be2 {[%clk 0:00:19]}  Ra2 {[%clk 0:00:12]} 50. Rd2 {[%clk 0:00:18]}  Ra1+ {[%clk 0:00:12]} 51. Rd1 {[%clk 0:00:18]}  Ra2 {[%clk 0:00:13]} 52. Rd2 {[%clk 0:00:18]}  Ra3 {[%clk 0:00:14]} 53. Rd1 {[%clk 0:00:17]}  Bc8 {[%clk 0:00:14]} 54. Kd2 {[%clk 0:00:17]}  Bd7 {[%clk 0:00:14]} 55. Rc1 {[%clk 0:00:17]}  Ra2+ {[%clk 0:00:15]} 56. Rc2 {[%clk 0:00:17]}  Ra1 {[%clk 0:00:15]} 57. Rc1 {[%clk 0:00:18]}  Ra2+ {[%clk 0:00:15]} 58. Rc2 {[%clk 0:00:18]}  Ra5 {[%clk 0:00:16]} 59. Rc3 {[%clk 0:00:17]}  Ra2+ {[%clk 0:00:16]} 60. Rc2 {[%clk 0:00:18]} 1/2-1/2


[Site "https://www.chess.com"]

[Event "Titled Tuesday Blitz April 12 Early 2022"]
[White "Suarez Uriel, Adrian"]
[Black "Samant Aditya S"]
[WhiteFideId "22230874"]
[BlackFideId "35080580"]
[WhiteElo "2316"]
[BlackElo "1916"]
[Result "0-1"]
[Round "07"]
[TimeControl "180+1"]
[Date "2022.04.13"]
[WhiteClock "0:00:13"]
[BlackClock "0:00:09"]

1. e4 {[%clk 0:03:00]}  c5 {[%clk 0:03:00]} 2. Ne2 {[%clk 0:03:00]}  d6 {[%clk 0:03:00]} 3. g3 {[%clk 0:03:00]}  Nc6 {[%clk 0:03:00]} 4. Bg2 {[%clk 0:03:00]}  Nf6 {[%clk 0:03:01]} 5. c3 {[%clk 0:03:01]}  g6 {[%clk 0:02:56]} 6. O-O {[%clk 0:03:00]}  Bg7 {[%clk 0:02:56]} 7. d4 {[%clk 0:03:00]}  O-O {[%clk 0:02:50]} 8. d5 {[%clk 0:03:00]}  Nb8 {[%clk 0:02:47]} 9. c4 {[%clk 0:03:00]}  e6 {[%clk 0:02:43]} 10. Nbc3 {[%clk 0:03:00]}  exd5 {[%clk 0:02:43]} 11. cxd5 {[%clk 0:03:00]}  Re8 {[%clk 0:02:41]} 12. f4 {[%clk 0:03:00]}  Na6 {[%clk 0:02:39]} 13. h3 {[%clk 0:02:43]}  Nc7 {[%clk 0:02:37]} 14. a4 {[%clk 0:02:43]}  b6 {[%clk 0:02:25]} 15. g4 {[%clk 0:02:38]}  Rb8 {[%clk 0:02:21]} 16. Ng3 {[%clk 0:02:36]}  a6 {[%clk 0:02:03]} 17. Re1 {[%clk 0:02:33]}  b5 {[%clk 0:01:30]} 18. e5 {[%clk 0:02:32]}  dxe5 {[%clk 0:01:30]} 19. fxe5 {[%clk 0:02:30]}  Nd7 {[%clk 0:01:31]} 20. e6 {[%clk 0:01:57]}  fxe6 {[%clk 0:00:44]} 21. d6 {[%clk 0:01:48]}  Bd4+ {[%clk 0:00:39]} 22. Kh1 {[%clk 0:01:46]}  Nd5 {[%clk 0:00:31]} 23. Nxd5 {[%clk 0:01:44]}  exd5 {[%clk 0:00:32]} 24. Bxd5+ {[%clk 0:01:44]}  Kh8 {[%clk 0:00:26]} 25. Rxe8+ {[%clk 0:01:20]}  Qxe8 {[%clk 0:00:27]} 26. Bg5 {[%clk 0:01:20]}  Qe5 {[%clk 0:00:23]} 27. Qf3 {[%clk 0:01:02]}  Qxg5 {[%clk 0:00:20]} 28. Re1 {[%clk 0:01:01]}  Be5 {[%clk 0:00:06]} 29. Ne4 {[%clk 0:00:56]}  Qf4 {[%clk 0:00:05]} 30. Qxf4 {[%clk 0:00:52]}  Bxf4 {[%clk 0:00:06]} 31. g5 {[%clk 0:00:32]}  Be5 {[%clk 0:00:06]} 32. Nf6 {[%clk 0:00:24]}  Nxf6 {[%clk 0:00:04]} 33. gxf6 {[%clk 0:00:20]}  Bxf6 {[%clk 0:00:05]} 34. Re8+ {[%clk 0:00:18]}  Kg7 {[%clk 0:00:05]} 35. d7 {[%clk 0:00:18]}  Bb7 {[%clk 0:00:04]} 36. Bxb7 {[%clk 0:00:15]}  Rxb7 {[%clk 0:00:05]} 37. d8=Q {[%clk 0:00:13]}  Bxd8 {[%clk 0:00:05]} 38. Rxd8 {[%clk 0:00:13]}  bxa4 {[%clk 0:00:06]} 39. Rd2 {[%clk 0:00:13]}  Kf6 {[%clk 0:00:06]} 40. Kg2 {[%clk 0:00:13]}  Ke5 {[%clk 0:00:07]} 41. Kf3 {[%clk 0:00:13]}  Rb3+ {[%clk 0:00:07]} 42. Ke2 {[%clk 0:00:13]}  c4 {[%clk 0:00:08]} 43. Rc2 {[%clk 0:00:12]}  Kd4 {[%clk 0:00:08]} 44. Rd2+ {[%clk 0:00:12]}  Kc5 {[%clk 0:00:08]} 45. Rc2 {[%clk 0:00:13]}  a3 {[%clk 0:00:08]} 46. bxa3 {[%clk 0:00:13]}  Rxa3 {[%clk 0:00:09]} 0-1


[Site "https://www.chess.com"]

[Event "Titled Tuesday Blitz April 12 Early 2022"]
[White "Svane, Rasmus"]
[Black "Palachev, Petr"]
[WhiteFideId "4657101"]
[BlackFideId "24129003"]
[WhiteElo "2645"]
[BlackElo "2339"]
[Result "1-0"]
[Round "07"]
[TimeControl "180+1"]
[Date "2022.04.12"]
[WhiteClock "0:01:16"]
[BlackClock "0:00:02"]

1. Nf3 {[%clk 0:03:00]}  d5 {[%clk 0:02:59]} 2. g3 {[%clk 0:03:01]}  g6 {[%clk 0:02:59]} 3. Bg2 {[%clk 0:03:01]}  Bg7 {[%clk 0:02:59]} 4. d4 {[%clk 0:03:02]}  c6 {[%clk 0:02:59]} 5. O-O {[%clk 0:03:02]}  Nf6 {[%clk 0:02:59]} 6. c3 {[%clk 0:03:03]}  O-O {[%clk 0:02:59]} 7. Re1 {[%clk 0:03:04]}  Bf5 {[%clk 0:02:58]} 8. Nbd2 {[%clk 0:03:04]}  a5 {[%clk 0:02:57]} 9. Nh4 {[%clk 0:03:05]}  Be6 {[%clk 0:02:56]} 10. e4 {[%clk 0:03:05]}  dxe4 {[%clk 0:02:57]} 11. Nxe4 {[%clk 0:03:06]}  Nxe4 {[%clk 0:02:57]} 12. Bxe4 {[%clk 0:03:07]}  Bd5 {[%clk 0:02:52]} 13. Bxd5 {[%clk 0:03:05]}  cxd5 {[%clk 0:02:53]} 14. Nf3 {[%clk 0:03:05]}  Nc6 {[%clk 0:02:53]} 15. a4 {[%clk 0:03:05]}  Qb6 {[%clk 0:02:43]} 16. h4 {[%clk 0:03:04]}  h5 {[%clk 0:02:42]} 17. Re2 {[%clk 0:03:04]}  Rfe8 {[%clk 0:02:41]} 18. Bf4 {[%clk 0:03:04]}  e6 {[%clk 0:02:32]} 19. Qd3 {[%clk 0:02:58]}  Qa6 {[%clk 0:02:31]} 20. Qb5 {[%clk 0:02:58]}  Rac8 {[%clk 0:02:15]} 21. Ra3 {[%clk 0:02:54]}  Bf8 {[%clk 0:01:54]} 22. Rb3 {[%clk 0:02:54]}  Qxb5 {[%clk 0:01:55]} 23. Rxb5 {[%clk 0:02:53]}  Re7 {[%clk 0:01:54]} 24. Ne5 {[%clk 0:02:45]}  Nxe5 {[%clk 0:01:39]} 25. Bxe5 {[%clk 0:02:46]}  Ra8 {[%clk 0:01:39]} 26. Bd6 {[%clk 0:02:37]}  Rd7 {[%clk 0:01:39]} 27. Bxf8 {[%clk 0:02:38]}  Kxf8 {[%clk 0:01:40]} 28. Re1 {[%clk 0:02:38]}  Ra6 {[%clk 0:01:31]} 29. Ra1 {[%clk 0:02:38]}  b6 {[%clk 0:01:30]} 30. Kg2 {[%clk 0:02:31]}  Ke7 {[%clk 0:01:28]} 31. f3 {[%clk 0:02:32]}  Rd6 {[%clk 0:01:25]} 32. Kf2 {[%clk 0:02:31]}  Rc6 {[%clk 0:01:24]} 33. Ke3 {[%clk 0:02:30]}  Ra8 {[%clk 0:01:24]} 34. Kd3 {[%clk 0:02:28]}  Kd6 {[%clk 0:01:24]} 35. Rc1 {[%clk 0:02:24]}  f6 {[%clk 0:01:12]} 36. b3 {[%clk 0:02:10]}  Rac8 {[%clk 0:00:25]} 37. c4 {[%clk 0:02:06]}  R8c7 {[%clk 0:00:25]} 38. Rc3 {[%clk 0:02:04]}  Rc8 {[%clk 0:00:25]} 39. Rxb6 {[%clk 0:01:47]}  Rxb6 {[%clk 0:00:25]} 40. c5+ {[%clk 0:01:47]}  Kc6 {[%clk 0:00:05]} 41. cxb6+ {[%clk 0:01:48]}  Kb7 {[%clk 0:00:05]} 42. Rxc8 {[%clk 0:01:20]}  Kxc8 {[%clk 0:00:06]} 43. f4 {[%clk 0:01:21]}  Kb7 {[%clk 0:00:03]} 44. Kc3 {[%clk 0:01:22]}  Kxb6 {[%clk 0:00:04]} 45. b4 {[%clk 0:01:22]}  Ka6 {[%clk 0:00:02]} 46. bxa5 {[%clk 0:01:19]}  Kxa5 {[%clk 0:00:02]} 47. Kb3 {[%clk 0:01:20]}  Ka6 {[%clk 0:00:01]} 48. Kb4 {[%clk 0:01:20]}  Kb6 {[%clk 0:00:01]} 49. a5+ {[%clk 0:01:20]}  Kc6 {[%clk 0:00:02]} 50. Ka4 {[%clk 0:01:16]}  f5 {[%clk 0:00:02]} 51. Kb4 {[%clk 0:01:16]} 1-0


[Site "https://www.chess.com"]

[Event "Titled Tuesday Blitz April 12 Early 2022"]
[White "Tanenbaum, Zachary"]
[Black "Potapova, Margarita"]
[WhiteFideId "2060850"]
[BlackFideId "14126869"]
[WhiteElo "2741"]
[BlackElo "2595"]
[Result "1-0"]
[Round "07"]
[TimeControl "180+1"]
[Date "2022.04.13"]
[WhiteClock "0:00:33"]
[BlackClock "0:00:07"]

1. e4 {[%clk 0:02:59]}  c5 {[%clk 0:02:55]} 2. Nf3 {[%clk 0:02:59]}  d6 {[%clk 0:02:56]} 3. d4 {[%clk 0:02:59]}  cxd4 {[%clk 0:02:57]} 4. Nxd4 {[%clk 0:03:00]}  Nf6 {[%clk 0:02:57]} 5. Nc3 {[%clk 0:03:00]}  a6 {[%clk 0:02:58]} 6. Be3 {[%clk 0:03:01]}  e5 {[%clk 0:02:58]} 7. Nb3 {[%clk 0:03:02]}  Be6 {[%clk 0:02:59]} 8. h3 {[%clk 0:03:02]}  Be7 {[%clk 0:02:57]} 9. f4 {[%clk 0:03:02]}  exf4 {[%clk 0:02:55]} 10. Bxf4 {[%clk 0:03:03]}  Nc6 {[%clk 0:02:54]} 11. Qe2 {[%clk 0:03:03]}  Ne5 {[%clk 0:02:54]} 12. O-O-O {[%clk 0:03:03]}  Nfd7 {[%clk 0:02:55]} 13. Kb1 {[%clk 0:03:03]}  Rc8 {[%clk 0:02:55]} 14. Qe3 {[%clk 0:02:58]}  O-O {[%clk 0:02:48]} 15. g4 {[%clk 0:02:58]}  h6 {[%clk 0:02:01]} 16. Rg1 {[%clk 0:02:47]}  Qb6 {[%clk 0:01:42]} 17. Qg3 {[%clk 0:02:43]}  Bh4 {[%clk 0:01:12]} 18. Qg2 {[%clk 0:02:31]}  Qf2 {[%clk 0:01:05]} 19. Qxf2 {[%clk 0:02:21]}  Bxf2 {[%clk 0:01:06]} 20. Rg2 {[%clk 0:02:21]}  Bh4 {[%clk 0:01:06]} 21. Rxd6 {[%clk 0:02:21]}  Be7 {[%clk 0:01:07]} 22. Rd1 {[%clk 0:02:20]}  Bf6 {[%clk 0:01:05]} 23. g5 {[%clk 0:02:06]}  hxg5 {[%clk 0:01:04]} 24. Bxg5 {[%clk 0:02:07]}  Bxg5 {[%clk 0:01:05]} 25. Rxg5 {[%clk 0:02:08]}  f6 {[%clk 0:01:05]} 26. Rg2 {[%clk 0:02:07]}  Bxh3 {[%clk 0:00:54]} 27. Rgd2 {[%clk 0:01:55]}  Bxf1 {[%clk 0:00:53]} 28. Rxf1 {[%clk 0:01:56]}  Nb6 {[%clk 0:00:45]} 29. Nd5 {[%clk 0:01:49]}  Nxd5 {[%clk 0:00:42]} 30. exd5 {[%clk 0:01:50]}  g5 {[%clk 0:00:39]} 31. Nd4 {[%clk 0:01:49]}  g4 {[%clk 0:00:37]} 32. Nf5 {[%clk 0:01:48]}  Rcd8 {[%clk 0:00:21]} 33. b3 {[%clk 0:01:32]}  Kf7 {[%clk 0:00:19]} 34. c4 {[%clk 0:01:31]}  Rh8 {[%clk 0:00:19]} 35. c5 {[%clk 0:01:30]}  Nf3 {[%clk 0:00:17]} 36. Rd3 {[%clk 0:01:28]}  Ne5 {[%clk 0:00:17]} 37. Rdd1 {[%clk 0:01:17]}  Rdg8 {[%clk 0:00:14]} 38. Nd6+ {[%clk 0:01:00]}  Kg6 {[%clk 0:00:13]} 39. Nxb7 {[%clk 0:01:00]}  g3 {[%clk 0:00:12]} 40. d6 {[%clk 0:00:57]}  g2 {[%clk 0:00:10]} 41. Rg1 {[%clk 0:00:57]}  Kf7 {[%clk 0:00:10]} 42. d7 {[%clk 0:00:55]}  Nf3 {[%clk 0:00:10]} 43. d8=Q {[%clk 0:00:51]}  Rxd8 {[%clk 0:00:10]} 44. Nxd8+ {[%clk 0:00:52]}  Rxd8 {[%clk 0:00:04]} 45. Rxd8 {[%clk 0:00:33]}  Nxg1 {[%clk 0:00:04]} 46. Rd7+ {[%clk 0:00:33]}  Ke6 {[%clk 0:00:04]} 47. Rg7 {[%clk 0:00:33]}  Nf3 {[%clk 0:00:01]} 48. Rxg2 {[%clk 0:00:33]}  Nd4 {[%clk 0:00:02]} 49. Kb2 {[%clk 0:00:32]}  f5 {[%clk 0:00:02]} 50. Kc3 {[%clk 0:00:32]}  Ke5 {[%clk 0:00:02]} 51. Kc4 {[%clk 0:00:32]}  Nb5 {[%clk 0:00:03]} 52. b4 {[%clk 0:00:32]}  f4 {[%clk 0:00:03]} 53. a4 {[%clk 0:00:31]}  Nc7 {[%clk 0:00:04]} 54. b5 {[%clk 0:00:32]}  axb5+ {[%clk 0:00:03]} 55. axb5 {[%clk 0:00:33]}  f3 {[%clk 0:00:04]} 56. Rf2 {[%clk 0:00:32]}  Ke4 {[%clk 0:00:05]} 57. b6 {[%clk 0:00:33]}  Na6 {[%clk 0:00:06]} 58. Kb5 {[%clk 0:00:32]}  Nb8 {[%clk 0:00:06]} 59. c6 {[%clk 0:00:33]}  Ke3 {[%clk 0:00:07]} 60. Rf1 {[%clk 0:00:33]} 1-0


[Site "https://www.chess.com"]

[Event "Titled Tuesday Blitz April 12 Early 2022"]
[White "Timofeev, Artyom"]
[Black "Mikhailov, Viacheslav"]
[WhiteFideId "4140419"]
[BlackFideId "4187369"]
[WhiteElo "2594"]
[BlackElo "2381"]
[Result "0-1"]
[Round "07"]
[TimeControl "180+1"]
[Date "2022.04.12"]
[WhiteClock "0:00:12"]
[BlackClock "0:01:10"]

1. e4 {[%clk 0:03:00]}  d6 {[%clk 0:02:59]} 2. d4 {[%clk 0:03:00]}  Nf6 {[%clk 0:03:00]} 3. Nc3 {[%clk 0:03:00]}  g6 {[%clk 0:03:00]} 4. Bg5 {[%clk 0:02:59]}  Bg7 {[%clk 0:03:01]} 5. Qd2 {[%clk 0:02:58]}  O-O {[%clk 0:03:01]} 6. O-O-O {[%clk 0:02:57]}  c6 {[%clk 0:03:01]} 7. Bh6 {[%clk 0:02:53]}  b5 {[%clk 0:03:02]} 8. Bxg7 {[%clk 0:02:52]}  Kxg7 {[%clk 0:03:02]} 9. Bd3 {[%clk 0:02:50]}  Qa5 {[%clk 0:03:00]} 10. Kb1 {[%clk 0:02:50]}  Be6 {[%clk 0:03:01]} 11. b3 {[%clk 0:02:39]}  Nbd7 {[%clk 0:02:54]} 12. h4 {[%clk 0:02:38]}  h5 {[%clk 0:02:52]} 13. Nf3 {[%clk 0:02:29]}  Bg4 {[%clk 0:02:52]} 14. e5 {[%clk 0:02:25]}  Nh7 {[%clk 0:02:35]} 15. Rhe1 {[%clk 0:02:08]}  Bxf3 {[%clk 0:02:31]} 16. gxf3 {[%clk 0:02:08]}  dxe5 {[%clk 0:02:29]} 17. dxe5 {[%clk 0:02:08]}  b4 {[%clk 0:02:16]} 18. Ne4 {[%clk 0:01:50]}  Nxe5 {[%clk 0:02:16]} 19. Qe3 {[%clk 0:01:41]}  Nxd3 {[%clk 0:02:11]} 20. Rxd3 {[%clk 0:01:40]}  Rad8 {[%clk 0:02:12]} 21. Red1 {[%clk 0:01:37]}  Nf6 {[%clk 0:02:04]} 22. Nxf6 {[%clk 0:01:27]}  exf6 {[%clk 0:02:05]} 23. Rxd8 {[%clk 0:01:24]}  Rxd8 {[%clk 0:02:06]} 24. Rxd8 {[%clk 0:01:24]}  Qxd8 {[%clk 0:02:06]} 25. Qxa7 {[%clk 0:01:25]}  g5 {[%clk 0:01:58]} 26. Qc5 {[%clk 0:01:17]}  Qd1+ {[%clk 0:01:48]} 27. Kb2 {[%clk 0:01:16]}  Qxf3 {[%clk 0:01:48]} 28. Qxb4 {[%clk 0:01:05]}  Qxf2 {[%clk 0:01:40]} 29. a4 {[%clk 0:00:57]}  g4 {[%clk 0:01:37]} 30. Qa5 {[%clk 0:00:47]}  c5 {[%clk 0:01:27]} 31. Qd8 {[%clk 0:00:11]}  g3 {[%clk 0:01:11]} 32. a5 {[%clk 0:00:11]}  g2 {[%clk 0:01:10]} 33. a6 {[%clk 0:00:12]}  g1=Q {[%clk 0:01:10]} 34. a7 {[%clk 0:00:12]}  Qd4+ {[%clk 0:01:10]} 0-1


[Site "https://www.chess.com"]

[Event "Titled Tuesday Blitz April 12 Early 2022"]
[White "Tuleyeva-Aketayeva, Dana"]
[Black "Osmonbekov, Talaibek"]
[WhiteFideId "13701932"]
[BlackFideId "2017253"]
[WhiteElo "1875"]
[BlackElo "2135"]
[Result "0-1"]
[Round "07"]
[TimeControl "180+1"]
[Date "2022.04.13"]
[WhiteClock "0:00:02"]
[BlackClock "0:00:26"]

1. d4 {[%clk 0:03:00]}  e6 {[%clk 0:02:59]} 2. Nf3 {[%clk 0:03:01]}  f5 {[%clk 0:02:59]} 3. g3 {[%clk 0:03:01]}  Nf6 {[%clk 0:02:59]} 4. Bg2 {[%clk 0:03:01]}  Be7 {[%clk 0:03:00]} 5. O-O {[%clk 0:03:02]}  O-O {[%clk 0:03:01]} 6. c4 {[%clk 0:03:02]}  d6 {[%clk 0:03:01]} 7. Nc3 {[%clk 0:03:03]}  Ne4 {[%clk 0:03:00]} 8. Qc2 {[%clk 0:02:59]}  Nxc3 {[%clk 0:02:59]} 9. Qxc3 {[%clk 0:02:57]}  a5 {[%clk 0:03:00]} 10. c5 {[%clk 0:02:53]}  Nc6 {[%clk 0:02:55]} 11. Be3 {[%clk 0:02:48]}  Bf6 {[%clk 0:02:47]} 12. Qc4 {[%clk 0:02:34]}  d5 {[%clk 0:02:23]} 13. Qc3 {[%clk 0:02:23]}  g5 {[%clk 0:02:22]} 14. Ne5 {[%clk 0:02:21]}  Bxe5 {[%clk 0:02:01]} 15. dxe5 {[%clk 0:02:19]}  d4 {[%clk 0:02:01]} 16. Qd2 {[%clk 0:01:43]}  dxe3 {[%clk 0:02:00]} 17. Qxe3 {[%clk 0:01:44]}  f4 {[%clk 0:01:42]} 18. Qc3 {[%clk 0:01:38]}  Qd4 {[%clk 0:01:25]} 19. Qxd4 {[%clk 0:01:03]}  Nxd4 {[%clk 0:01:24]} 20. e3 {[%clk 0:01:03]}  Ne2+ {[%clk 0:01:14]} 21. Kh1 {[%clk 0:01:00]}  f3 {[%clk 0:01:14]} 22. Bh3 {[%clk 0:01:00]}  h5 {[%clk 0:01:13]} 23. g4 {[%clk 0:01:00]}  h4 {[%clk 0:01:12]} 24. Rfe1 {[%clk 0:00:43]}  a4 {[%clk 0:01:07]} 25. Bf1 {[%clk 0:00:39]}  a3 {[%clk 0:01:05]} 26. b3 {[%clk 0:00:33]}  Ra5 {[%clk 0:00:58]} 27. Rac1 {[%clk 0:00:30]}  Nxc1 {[%clk 0:00:56]} 28. Rxc1 {[%clk 0:00:13]}  Bd7 {[%clk 0:00:46]} 29. b4 {[%clk 0:00:09]}  Ra4 {[%clk 0:00:40]} 30. Rb1 {[%clk 0:00:08]}  Bc6 {[%clk 0:00:36]} 31. b5 {[%clk 0:00:05]}  Bd5 {[%clk 0:00:35]} 32. Ra1 {[%clk 0:00:05]}  Rb4 {[%clk 0:00:34]} 33. Re1 {[%clk 0:00:03]}  Rb2 {[%clk 0:00:30]} 34. e4 {[%clk 0:00:02]}  Bxa2 {[%clk 0:00:30]} 35. Re3 {[%clk 0:00:02]}  Rb1 {[%clk 0:00:26]} 0-1


[Site "https://www.chess.com"]

[Event "Titled Tuesday Blitz April 12 Early 2022"]
[White "Vianello, Enrico"]
[Black "Czerw, Dawid"]
[WhiteFideId "810738"]
[BlackFideId "1145746"]
[WhiteElo "2270"]
[BlackElo "2125"]
[Result "0-1"]
[Round "07"]
[TimeControl "180+1"]
[Date "2022.04.13"]
[WhiteClock "0:00:32"]
[BlackClock "0:00:07"]

1. Nf3 {[%clk 0:03:00]}  c5 {[%clk 0:02:59]} 2. c4 {[%clk 0:02:59]}  Nc6 {[%clk 0:02:59]} 3. b3 {[%clk 0:02:59]}  Nf6 {[%clk 0:02:57]} 4. Bb2 {[%clk 0:02:59]}  e6 {[%clk 0:02:58]} 5. e3 {[%clk 0:02:58]}  Be7 {[%clk 0:02:58]} 6. Nc3 {[%clk 0:02:55]}  O-O {[%clk 0:02:58]} 7. Be2 {[%clk 0:02:55]}  d5 {[%clk 0:02:58]} 8. cxd5 {[%clk 0:02:55]}  exd5 {[%clk 0:02:59]} 9. d4 {[%clk 0:02:55]}  Be6 {[%clk 0:02:54]} 10. O-O {[%clk 0:02:55]}  b6 {[%clk 0:02:50]} 11. Rc1 {[%clk 0:02:50]}  Rc8 {[%clk 0:02:49]} 12. dxc5 {[%clk 0:02:46]}  bxc5 {[%clk 0:02:49]} 13. Qc2 {[%clk 0:02:44]}  Qd7 {[%clk 0:02:43]} 14. Rfd1 {[%clk 0:02:43]}  Qb7 {[%clk 0:02:37]} 15. Qb1 {[%clk 0:02:42]}  Rfd8 {[%clk 0:02:36]} 16. Na4 {[%clk 0:02:40]}  Nb8 {[%clk 0:02:09]} 17. Bxf6 {[%clk 0:02:25]}  gxf6 {[%clk 0:02:09]} 18. Bd3 {[%clk 0:02:22]}  h6 {[%clk 0:02:06]} 19. Nh4 {[%clk 0:02:15]}  Nd7 {[%clk 0:02:01]} 20. Nf5 {[%clk 0:02:14]}  Bf8 {[%clk 0:02:01]} 21. Ng3 {[%clk 0:02:09]}  Ne5 {[%clk 0:01:59]} 22. Bf5 {[%clk 0:02:08]}  a5 {[%clk 0:01:38]} 23. Rd2 {[%clk 0:02:07]}  Qb4 {[%clk 0:01:15]} 24. Rdc2 {[%clk 0:01:54]}  c4 {[%clk 0:01:13]} 25. Bxe6 {[%clk 0:01:46]}  fxe6 {[%clk 0:01:12]} 26. Qb2 {[%clk 0:01:35]}  Rb8 {[%clk 0:00:59]} 27. f4 {[%clk 0:01:31]}  Nd7 {[%clk 0:00:53]} 28. Nh5 {[%clk 0:01:26]}  Kf7 {[%clk 0:00:49]} 29. Rc3 {[%clk 0:01:18]}  Qxa4 {[%clk 0:00:46]} 30. Qc2 {[%clk 0:01:17]}  cxb3 {[%clk 0:00:36]} 31. Qh7+ {[%clk 0:01:16]}  Ke8 {[%clk 0:00:35]} 32. Qg6+ {[%clk 0:01:06]}  Ke7 {[%clk 0:00:34]} 33. Qh7+ {[%clk 0:01:05]}  Kd6 {[%clk 0:00:33]} 34. axb3 {[%clk 0:01:02]}  Rxb3 {[%clk 0:00:27]} 35. Rc7 {[%clk 0:00:52]}  Qb5 {[%clk 0:00:17]} 36. f5 {[%clk 0:00:47]}  Rb1 {[%clk 0:00:15]} 37. Rxb1 {[%clk 0:00:43]}  Qxb1+ {[%clk 0:00:14]} 38. Kf2 {[%clk 0:00:43]}  Qb2+ {[%clk 0:00:12]} 39. Kg3 {[%clk 0:00:42]}  Kxc7 {[%clk 0:00:12]} 40. fxe6 {[%clk 0:00:42]}  Qe5+ {[%clk 0:00:12]} 41. Nf4 {[%clk 0:00:41]}  Qxe3+ {[%clk 0:00:08]} 42. Kg4 {[%clk 0:00:40]}  Qe5 {[%clk 0:00:07]} 43. Qc2+ {[%clk 0:00:37]}  Nc5 {[%clk 0:00:06]} 44. Kf3 {[%clk 0:00:35]}  Qe4+ {[%clk 0:00:05]} 45. Qxe4 {[%clk 0:00:35]}  dxe4+ {[%clk 0:00:06]} 46. Ke3 {[%clk 0:00:35]}  Bd6 {[%clk 0:00:05]} 47. Nd5+ {[%clk 0:00:34]}  Kc6 {[%clk 0:00:06]} 48. e7 {[%clk 0:00:34]}  Bxe7 {[%clk 0:00:05]} 49. Nxe7+ {[%clk 0:00:34]}  Kb5 {[%clk 0:00:06]} 50. g4 {[%clk 0:00:33]}  a4 {[%clk 0:00:06]} 51. h4 {[%clk 0:00:33]}  a3 {[%clk 0:00:07]} 52. g5 {[%clk 0:00:34]}  fxg5 {[%clk 0:00:06]} 53. hxg5 {[%clk 0:00:32]}  hxg5 {[%clk 0:00:07]} 0-1


[Site "https://www.chess.com"]